bitfinex/quotes_ETHUSD_20251021
["timestamp","ask_amount","ask_price","bid_price","bid_amount"]
[1761062995455,0.001,4077.7,4077.6,9.99727869]
[1761062995616,0.001,4077.7,4077.6,4.87502299]
[1761062995818,0.001,4077.7,4077.6,10.13302299]
[1761062996021,0.001,4077.7,4077.6,4.87502299]
[1761062996219,0.001,4077.7,4077.6,10.13302299]
[1761062996615,0.001,4077.7,4077.6,10.12902299]
[1761062997424,0.001,4077.7,4077.6,8.46802299]
[1761062997747,0.001,4077.7,4077.6,8.59042299]
[1761062998610,0.001,4077.7,4077.6,12.70171869]
[1761062998959,0.001,4078.2,4078.1,2.69782231]
[1761062999124,0.001,4078.2,4078.1,59.72820384]
[1761062999325,0.001,4078.6,4078.5,5.03488181]
[1761062999529,0.001,4078.6,4078.5,13.08897717]
[1761062999828,0.001,4078.6,4078.5,13.65622405]
[1761063000031,0.001,4078.6,4078.5,22.78314205]
[1761063000229,0.2242,4081.3,4079.2,2.583]
[1761063000565,0.2242,4081.3,4080.0,2.45093979]
[1761063000566,0.2242,4080.9,4080.0,2.45093979]
[1761063000853,0.2242,4080.9,4080.4,2.45072312]
[1761063001054,0.2242,4080.9,4080.1,3.585]
[1761063001055,0.2242,4080.9,4080.5,3.585]
[1761063001266,0.2242,4080.9,4079.9,2.45100865]
[1761063001444,2.45061137,4080.7,4080.0,3.6055098]
[1761063001767,0.1969,4081.0,4080.1,3.581]
[1761063002063,0.2197,4081.7,4081.3,2.45014994]
[1761063002215,0.2197,4081.7,4081.4,3.579]
[1761063002415,0.2194,4082.1,4081.5,0.02450079]
[1761063002610,0.2194,4082.1,4081.6,2.4500196]
[1761063002844,0.2194,4082.1,4082.0,2.44977951]
[1761063003063,0.2194,4082.1,4080.1,1.03043904]
[1761063003228,0.6366,4082.1,4081.2,3.576]
[1761063003435,0.6366,4082.1,4081.3,0.02450199]
[1761063003616,0.6366,4082.1,4081.2,6.02624647]
[1761063003617,0.2194,4082.1,4081.2,6.02624647]
[1761063004013,2.4498325,4082.0,4081.2,2.4502567]
[1761063004251,0.4172,4082.0,4081.3,6.02719953]
[1761063004465,0.4172,4082.0,4081.4,3.576]
[1761063004667,0.4172,4081.9,4081.5,3.577]
[1761063005120,0.2194,4082.1,4081.5,3.577]
[1761063005321,0.2194,4082.1,4081.8,2.44984957]
[1761063005520,0.2194,4082.1,4081.9,2.44983318]
[1761063005724,0.2194,4082.1,4081.6,2.45001958]
[1761063005725,0.1108,4082.4,4082.0,3.59949779]
[1761063006034,0.38411368,4082.5,4082.1,6.62965859]
[1761063006231,0.38411368,4082.5,4082.1,6.4736195]
[1761063006433,0.38411368,4082.5,4082.1,30.41412103]
[1761063007321,0.38411368,4082.5,4082.1,35.08477303]
[1761063007522,0.38411368,4082.5,4082.1,30.41412103]
[1761063007765,0.38411368,4082.5,4082.1,32.88255592]
[1761063007966,0.38411368,4082.5,4082.1,12.32005439]
[1761063008219,0.38411368,4082.5,4082.1,9.8516195]
[1761063008339,0.38411368,4082.5,4082.1,4.6266195]
[1761063008660,0.001,4082.7,4082.1,9.8506195]
[1761063008862,0.001,4082.7,4082.1,9.4017195]
[1761063009163,0.001,4082.7,4082.1,9.5241195]
[1761063009377,0.001,4082.7,4082.1,5.49751365]
[1761063009677,0.001,4082.7,4082.1,30.52452103]
[1761063009884,0.001,4082.7,4082.1,26.83912103]
[1761063010179,0.001,4082.7,4082.1,32.05712103]
[1761063010347,0.001,4082.7,4082.1,32.5528534]
[1761063010544,0.001,4082.7,4082.6,2.44941948]
[1761063010781,0.001,4082.7,4082.6,13.79898848]
[1761063011075,0.001,4082.7,4082.6,6.01041948]
[1761063011269,0.001,4082.7,4082.6,6.45931948]
[1761063011475,0.001,4082.7,4082.6,2.44941948]
[1761063011764,0.001,4082.7,4082.6,6.00641948]
[1761063012168,0.001,4082.7,4082.6,6.68710784]
[1761063012351,0.001,4082.7,4082.6,7.13600784]
[1761063012554,0.001,4082.7,4082.6,10.70487784]
[1761063012763,0.001,4082.7,4082.6,8.86400784]
[1761063013072,0.001,4082.7,4082.6,8.41510784]
[1761063013252,0.001,4082.7,4082.6,8.86400784]
[1761063013452,0.001,4082.7,4082.6,13.36851984]
[1761063013653,0.001,4082.7,4082.6,8.86400784]
[1761063013971,0.001,4082.7,4082.6,11.63977784]
[1761063014171,0.001,4082.7,4082.6,9.37088784]
[1761063014540,0.001,4082.7,4082.6,12.71255084]
[1761063014734,0.001,4082.7,4082.6,12.97409484]
[1761063015075,0.86686938,4088.6,4082.6,12.97409484]
[1761063015076,0.4357,4085.3,4083.0,9.31086252]
[1761063015360,22.21250153,4087.0,4083.0,9.31086252]
[1761063015361,0.1141,4084.7,4083.0,33.44837373]
[1761063015660,0.1141,4084.7,4083.0,35.94951473]
[1761063015896,0.1141,4084.7,4083.0,30.74651473]
[1761063016055,0.4325,4085.2,4083.0,35.94851473]
[1761063016260,0.4294,4085.3,4083.0,35.94851473]
[1761063016698,0.1204,4084.7,4083.0,32.28420473]
[1761063016882,0.1204,4084.7,4083.0,36.26320973]
[1761063017185,0.4263,4084.4,4083.0,33.89427373]
[1761063017385,0.1204,4084.7,4083.0,33.89427373]
[1761063017604,0.1204,4084.7,4083.0,37.12344573]
[1761063017760,0.1204,4084.7,4083.0,39.70644573]
[1761063018305,2.9543132,4086.0,4083.0,47.13639873]
[1761063018601,0.1265,4084.5,4084.4,2.44834002]
[1761063018896,0.1265,4084.5,4084.4,5.99034002]
[1761063019104,0.4174,4085.5,4085.2,2.4478604]
[1761063019270,0.4174,4085.5,4085.3,3.542]
[1761063019650,0.70389021,4085.5,4085.3,3.542]
[1761063019890,0.4174,4085.5,4085.4,0.1216]
[1761063020081,2.44743901,4086.0,4085.4,0.1216]
[1761063020281,2.44744233,4085.9,4085.4,0.1216]
[1761063020456,4.17532337,4086.1,4085.4,0.1216]
[1761063020457,2.44762072,4085.7,4085.5,3.538]
[1761063020655,2.44751248,4085.8,4085.5,3.538]
[1761063020990,2.73406041,4085.7,4085.5,3.538]
[1761063021369,0.4174,4085.6,4085.4,0.1216]
[1761063021686,0.4174,4085.6,4085.5,3.537]
[1761063022251,0.4174,4085.6,4085.4,0.1216]
[1761063022460,0.1216,4085.4,4084.6,0.1224]
[1761063022760,0.1216,4085.4,4084.7,0.872]
[1761063022761,2.44815236,4084.8,4084.7,0.872]
[1761063023090,2.44815236,4084.8,4084.6,0.1224]
[1761063023091,2.4481602,4084.7,4084.6,0.1224]
[1761063023323,0.4174,4084.7,4084.0,0.1224]
[1761063023473,2.44851986,4084.1,4084.0,0.1224]
[1761063023674,2.44851986,4084.1,4084.0,3.6504]
[1761063023878,2.44851986,4084.1,4084.0,0.1224]
[1761063023879,2.86301986,4084.1,4084.0,0.1224]
[1761063024075,3.4073958,4084.1,4084.0,0.115]
[1761063024277,2.44857982,4084.0,4083.9,3.528]
[1761063024485,2.44857982,4084.0,4083.6,0.1224]
[1761063024486,2.4487597,4083.7,4083.6,0.1224]
[1761063024712,2.44874549,4083.8,4083.6,3.525]
[1761063024914,2.4487597,4083.7,4083.6,3.525]
[1761063025121,0.94570052,4083.7,4083.6,3.525]
[1761063025278,0.4145,4083.7,4083.6,3.525]
[1761063025808,0.1224,4084.1,4083.6,5.97381966]
[1761063025994,0.1224,4084.1,4083.6,3.6474]
[1761063025995,0.4145,4084.1,4083.6,3.6474]
[1761063026309,0.4145,4084.1,4083.9,0.1224]
[1761063026492,0.71401426,4084.1,4083.9,0.1224]
[1761063026694,0.4145,4084.1,4083.9,0.1224]
[1761063026912,0.4145,4084.0,4083.9,0.1224]
[1761063027634,2.86307982,4084.0,4083.9,0.1224]
[1761063027842,0.4145,4084.0,4082.6,1.728]
[1761063028134,0.1323,4084.2,4082.8,0.1224]
[1761063028135,0.50688,4083.5,4082.8,0.1224]
[1761063028306,0.4643,4083.4,4082.8,3.6384]
[1761063028506,2.44906429,4083.2,4082.8,3.6384]
[1761063028736,0.29133643,4083.1,4082.8,3.6384]
[1761063028906,0.75563643,4083.1,4082.8,3.6384]
[1761063029412,0.1323,4084.2,4082.8,3.516]
[1761063029413,0.50688,4084.1,4082.8,3.516]
[1761063029614,0.4643,4083.1,4083.0,0.1224]
[1761063030028,0.4643,4083.1,4082.8,3.516]
[1761063030230,0.4643,4083.1,4082.8,3.6384]
[1761063030551,0.1224,4083.8,4082.9,0.02449239]
[1761063030717,0.5867,4083.8,4083.0,0.1224]
[1761063030901,0.4643,4083.8,4083.2,2.44905693]
[1761063031103,0.4643,4083.8,4083.5,0.1224]
[1761063031322,2.44881966,4083.6,4083.5,3.508]
[1761063031537,2.98500266,4083.6,4083.5,3.508]
[1761063031714,3.44930266,4083.6,4083.5,3.508]
[1761063031916,1.000483,4083.6,4083.5,3.508]
[1761063032112,2.91311966,4083.6,4083.5,3.508]
[1761063032513,2.44905956,4083.2,4083.0,3.503]
[1761063032908,0.4643,4083.1,4083.0,3.503]
[1761063033436,0.4643,4083.1,4081.4,0.2171]
[1761063033437,0.97118,4083.1,4081.4,0.2171]
[1761063033610,2.44928122,4082.9,4081.7,3.52449959]
[1761063033810,0.6224,4082.8,4081.7,3.52449959]
[1761063034117,0.6224,4082.8,4082.2,2.44963925]
[1761063034338,0.1551,4082.8,4082.3,0.02449599]
[1761063034567,0.6208,4082.8,4082.5,2.4494543]
[1761063034726,0.6208,4082.8,4082.4,3.498]
[1761063034923,0.6208,4082.8,4080.7,1.655]
[1761063034924,0.1701,4082.5,4080.7,1.655]
[1761063035124,0.1701,4082.5,4080.8,3.6615]
[1761063035360,0.4628,4082.4,4081.2,2.45020716]
[1761063035627,2.44982741,4082.0,4081.3,2.45019387]
[1761063035846,0.4628,4081.9,4080.9,1.728]
[1761063036053,0.4628,4081.9,4081.6,2.44997269]
[1761063036257,0.4128,4081.9,4081.6,3.495]
[1761063036832,2.44995957,4081.7,4081.6,3.495]
[1761063037053,2.98122002,4081.7,4081.6,3.495]
[1761063037257,2.98122002,4081.7,4081.1,3.49]
[1761063037459,2.4500196,4081.6,4081.1,3.49]
[1761063037757,2.45000585,4081.7,4081.1,3.49]
[1761063037940,2.44991647,4081.8,4081.1,3.49]
[1761063038142,0.3638,4081.7,4081.1,3.51450319]
[1761063038660,0.3638,4081.7,4081.1,3.49]
[1761063038860,2.81375957,4081.7,4081.6,0.002]
[1761063039085,3.34011839,4081.7,4081.6,0.002]
[1761063039861,0.89015882,4081.7,4081.6,0.002]
[1761063040159,3.34011839,4081.7,4081.6,0.002]
[1761063040471,0.89015882,4081.7,4081.6,0.002]
[1761063040956,1.10027193,4082.2,4081.6,0.002]
[1761063041159,2.44974208,4082.1,4081.6,0.002]
[1761063041462,4.54134953,4082.4,4081.6,0.002]
[1761063041463,0.1602,4081.7,4081.6,0.002]
[1761063041659,2.61015957,4081.7,4081.6,0.002]
[1761063041827,3.23297553,4081.7,4081.6,0.002]
[1761063043055,0.78301596,4081.7,4081.6,0.002]
[1761063043251,0.522,4081.7,4081.6,0.002]
[1761063043451,0.1224,4082.1,4081.6,0.002]
[1761063043653,0.2149,4081.8,4081.6,0.002]
[1761063044154,2.75755957,4081.7,4081.6,0.002]
[1761063044356,3.05480553,4081.7,4081.6,0.002]
[1761063044553,0.60484596,4081.7,4081.6,0.002]
[1761063044868,3.05480553,4081.7,4081.6,0.002]
[1761063045735,0.60484596,4081.7,4081.6,0.002]
[1761063045960,0.3373,4081.8,4081.6,0.002]
[1761063046161,0.6449,4081.8,4081.6,0.002]
[1761063046548,0.3076,4081.7,4081.6,0.002]
[1761063046752,2.75755957,4081.7,4081.6,0.002]
[1761063047262,0.3076,4081.7,4081.6,0.002]
[1761063047637,0.2149,4081.8,4081.6,0.002]
[1761063047839,0.52436967,4081.8,4081.6,0.002]
[1761063048039,2.75755957,4081.7,4081.6,0.002]
[1761063050866,0.2149,4081.9,4081.6,0.002]
[1761063051065,2.44989955,4081.8,4081.6,0.002]
[1761063051575,0.3076,4081.7,4081.6,0.002]
[1761063052168,5.32026301,4081.7,4081.6,0.002]
[1761063052368,4.99243957,4081.7,4081.6,0.002]
[1761063052671,5.01078442,4081.7,4081.6,0.002]
[1761063053167,5.74742633,4081.7,4081.6,0.002]
[1761063053373,5.72908148,4081.7,4081.6,0.002]
[1761063053561,6.91626503,4081.7,4081.6,0.002]
[1761063053958,3.65182546,4081.7,4081.6,0.002]
[1761063054255,4.48555957,4081.7,4081.6,0.002]
[1761063054656,4.68483957,4081.7,4081.6,0.002]
[1761063054861,4.99243957,4081.7,4081.6,0.002]
[1761063055432,5.72908148,4081.7,4081.6,0.002]
[1761063057389,7.82727048,4081.7,4081.6,0.002]
[1761063057676,7.13832372,4081.7,4081.6,0.002]
[1761063058567,6.83072372,4081.7,4081.6,0.002]
[1761063058767,7.13832372,4081.7,4081.6,0.002]
[1761063059987,6.63144372,4081.7,4081.6,0.002]
[1761063060145,9.37280181,4081.7,4081.6,0.002]
[1761063060453,1.82621265,4081.7,4081.6,0.002]
[1761063060656,0.1224,4081.8,4081.6,0.002]
[1761063060876,3.478,4082.2,4081.6,0.1244]
[1761063061081,2.4497767,4082.1,4081.6,0.1244]
[1761063061547,4.1777767,4082.1,4081.6,0.1244]
[1761063061989,2.4497767,4082.1,4081.6,0.1244]
[1761063062294,3.17353957,4081.7,4081.6,0.002]
[1761063062589,5.02393957,4081.7,4081.6,0.002]
[1761063062755,1.728,4081.7,4081.6,0.002]
[1761063063167,4.17777316,4082.1,4081.6,0.002]
[1761063063380,0.0022,4082.3,4081.6,0.002]
[1761063063576,2.4497195,4082.1,4081.8,0.1224]
[1761063063880,0.0022,4082.3,4081.8,0.1224]
[1761063064056,0.0022,4082.3,4081.9,0.4672]
[1761063064246,0.0022,4082.3,4081.6,0.002]
[1761063064445,0.0022,4082.3,4082.0,2.44977287]
[1761063064670,0.0022,4082.3,4082.2,0.1224]
[1761063064865,0.0022,4082.3,4082.2,0.5896]
[1761063065199,0.0022,4082.3,4082.2,0.1224]
[1761063065374,0.0022,4082.3,4082.2,0.5896]
[1761063065699,0.0022,4082.3,4082.2,3.03925949]
[1761063066298,0.0022,4082.3,4082.2,3.63458937]
[1761063067206,1e-08,4082.4,4082.3,4.64479949]
[1761063067705,1e-08,4082.4,4082.3,8.49575249]
[1761063068002,1e-08,4082.4,4082.3,8.55691309]
[1761063068351,0.86786938,4086.0,4082.7,0.2457]
[1761063068352,2.44755474,4085.8,4082.7,0.2457]
[1761063068468,2.44755474,4085.8,4085.0,2.44793364]
[1761063068469,0.2339,4085.8,4085.0,2.44793364]
[1761063068667,0.2339,4085.8,4085.3,0.1216]
[1761063068869,1.728,4085.7,4085.3,0.1216]
[1761063069203,2.44794067,4085.1,4084.7,0.68]
[1761063069402,0.2339,4085.8,4084.7,3.12814624]
[1761063069609,0.2339,4085.8,4084.7,0.68]
[1761063069808,0.0832,4084.8,4083.4,0.4672]
[1761063070015,2.44837015,4084.4,4083.5,3.69217233]
[1761063070215,2.44848836,4084.2,4083.6,0.41593723]
[1761063070399,2.44848836,4084.2,4083.5,1.2433]
[1761063070605,2.44848836,4084.2,4083.5,1.024]
[1761063070772,2.4482923,4084.5,4083.6,2.44877455]
[1761063070773,2.44832396,4084.5,4083.6,2.44877455]
[1761063070980,0.0832,4084.8,4083.5,1.024]
[1761063071206,2.44826736,4084.6,4083.6,0.4672]
[1761063071522,2.4481602,4084.7,4083.6,0.4672]
[1761063071722,2.4481602,4084.7,4083.7,2.44874492]
[1761063071883,0.0832,4084.8,4083.8,2.44868235]
[1761063072078,0.45694485,4084.7,4083.5,1.024]
[1761063072304,2.44848536,4084.2,4083.5,1.024]
[1761063072517,0.45694485,4084.7,4083.5,3.47286095]
[1761063072716,1.728,4084.6,4083.5,3.47286095]
[1761063072901,0.47162941,4084.5,4083.5,1.024]
[1761063073219,2.1666,4084.7,4083.8,2.44867099]
[1761063073383,2.1666,4084.7,4083.5,1.024]
[1761063073384,2.44826655,4084.6,4083.5,3.47285882]
[1761063073718,1.728,4084.6,4083.6,2.44876189]
[1761063073915,2.44836111,4084.4,4083.7,2.44874426]
[1761063074223,0.46979709,4084.6,4083.8,2.44869032]
[1761063074427,2.91806115,4084.6,4083.6,2.91601745]
[1761063074710,0.4386,4085.3,4083.7,2.94041192]
[1761063074910,4.17586968,4085.2,4084.4,2.44833122]
[1761063075115,0.46144697,4085.1,4084.4,2.44833122]
[1761063075420,1.728,4085.0,4084.4,2.44833122]
[1761063075723,0.069,4085.5,4084.5,0.4672]
[1761063076086,0.001,4084.7,4084.6,2.44822014]
[1761063076621,0.001,4084.7,4084.6,2.91542014]
[1761063078988,0.001,4084.7,4084.6,3.03782014]
[1761063079185,0.001,4084.7,4084.6,3.28352014]
[1761063079401,0.001,4084.7,4084.6,3.03782014]
[1761063081319,0.001,4084.7,4084.6,3.95576285]
[1761063081501,0.001,4084.7,4084.6,3.98024505]
[1761063083027,0.001,4084.7,4084.6,2.57062014]
[1761063084647,0.001,4084.7,4084.6,3.00782014]
[1761063086571,0.001,4084.7,4084.6,4.61342014]
[1761063086863,0.001,4084.7,4084.6,4.73582014]
[1761063087254,0.001,4084.7,4084.6,5.14478234]
[1761063087457,0.001,4084.7,4084.6,10.17173503]
[1761063087836,0.001,4084.7,4084.6,7.08185503]
[1761063088036,0.001,4084.7,4084.6,4.61342014]
[1761063088565,0.001,4084.7,4084.6,7.19642014]
[1761063088766,0.001,4084.7,4084.6,2.44822014]
[1761063088966,0.001,4084.7,4084.6,3.469]
[1761063089188,2.9102825,4084.7,4083.5,0.4372]
[1761063089337,0.76672825,4084.7,4083.6,3.469]
[1761063089537,0.4621,4084.7,4083.8,2.44866666]
[1761063089762,0.4611,4084.6,4083.6,3.469]
[1761063090174,2.44842296,4084.3,4083.6,5.91777791]
[1761063090377,2.44842296,4084.3,4083.6,3.469]
[1761063090579,2.90952296,4084.3,4083.6,3.469]
[1761063091383,2.4485037,4084.2,4083.6,3.469]
[1761063091564,0.4611,4084.2,4083.6,3.469]
[1761063091765,0.29095567,4084.2,4083.6,3.469]
[1761063091972,0.4621,4084.7,4083.6,3.49348819]
[1761063092294,0.001,4084.7,4084.0,2.44855453]
[1761063092511,0.001,4084.7,4084.0,0.02448579]
[1761063092676,0.001,4084.7,4084.5,2.44824683]
[1761063092876,0.001,4084.7,4084.1,3.6969]
[1761063092877,0.001,4084.7,4084.6,3.467]
[1761063093075,0.6014,4084.7,4084.6,3.467]
[1761063093322,3.0495602,4084.7,4084.6,3.467]
[1761063093620,0.1344,4084.7,4084.6,3.467]
[1761063093901,0.001,4084.7,4084.6,3.467]
[1761063094682,0.001,4084.7,4084.6,5.91522014]
[1761063095071,0.001,4084.7,4084.6,7.18877586]
[1761063095572,0.001,4084.7,4084.6,8.91677586]
[1761063097122,0.001,4084.7,4084.6,2.44822014]
[1761063097274,0.068,4084.6,4083.5,0.18733]
[1761063097597,2.97732014,4084.6,4084.5,0.1224]
[1761063097988,0.068,4084.6,4084.5,0.1224]
[1761063099203,2.51622014,4084.6,4084.5,0.1224]
[1761063099391,0.5291,4084.6,4084.5,0.1224]
[1761063099579,2.97732014,4084.6,4084.5,0.1224]
[1761063099774,0.5291,4084.6,4084.5,0.1224]
[1761063100130,2.44851986,4084.1,4084.0,3.466]
[1761063100277,2.44851986,4084.1,4084.0,3.5884]
[1761063100478,2.90961986,4084.1,4084.0,3.5884]
[1761063100678,0.37949662,4084.6,4084.0,3.5884]
[1761063100891,0.068,4084.6,4084.0,3.5884]
[1761063101102,2.51626676,4084.6,4084.0,3.5884]
[1761063101286,0.068,4084.6,4084.0,3.5884]
[1761063101503,0.5291,4084.6,4084.0,3.5884]
[1761063101905,2.97732793,4084.6,4084.0,3.5884]
[1761063102307,2.97732955,4084.6,4084.0,3.5884]
[1761063102491,0.5291,4084.6,4084.0,3.5884]
[1761063102690,0.39172422,4084.6,4084.0,3.5884]
[1761063102896,2.44834267,4084.4,4084.0,3.5884]
[1761063103107,0.4611,4084.5,4084.0,3.5884]
[1761063103311,2.44851986,4084.1,4084.0,3.5884]
[1761063103688,2.90961986,4084.1,4084.0,3.5884]
[1761063104110,2.90961986,4084.1,4084.0,3.466]
[1761063104310,3.44542597,4084.1,4084.0,3.466]
[1761063104819,2.44865692,4083.9,4083.7,0.1224]
[1761063105140,0.1327,4084.0,4083.7,0.1224]
[1761063105427,2.58440251,4084.3,4083.9,0.1224]
[1761063105609,2.90825276,4084.3,4083.9,0.1224]
[1761063105942,2.4484677,4084.2,4083.9,0.1224]
[1761063106092,3.36870016,4084.3,4083.9,0.1224]
[1761063106294,0.32385025,4084.3,4084.1,0.1224]
[1761063106483,0.068,4084.6,4084.1,0.1224]
[1761063106688,2.1075,4084.5,4084.1,0.1224]
[1761063106884,4.17632494,4084.5,4084.1,0.1224]
[1761063107487,1.728,4084.5,4084.1,0.1224]
[1761063107915,2.448441,4084.3,4084.1,0.1224]
[1761063108121,3.1488827,4084.2,4084.1,0.1224]
[1761063108286,2.82784632,4084.4,4084.1,0.1224]
[1761063108287,2.44842066,4084.3,4084.1,0.1224]
[1761063108486,1.728,4084.5,4084.1,0.1224]
[1761063108686,2.44839283,4084.4,4084.1,0.1224]
[1761063110127,4.17629791,4084.5,4084.1,0.1224]
[1761063110423,1.728,4084.5,4084.1,0.1224]
[1761063110623,2.51623936,4084.6,4084.1,0.1224]
[1761063110856,2.754468,4084.4,4082.1,1.75127063]
[1761063110998,0.71342879,4084.5,4080.1,0.05]
[1761063110999,0.50688,4083.2,4081.4,1.8029]
[1761063111199,0.1224,4082.9,4082.2,0.1224]
[1761063111425,0.65673045,4084.0,4082.4,1.9]
[1761063111426,0.50688,4083.4,4082.4,1.9]
[1761063111934,2.44947948,4082.5,4082.4,0.002]
[1761063112227,4.17747948,4082.5,4082.4,0.002]
[1761063112528,5.35386338,4082.5,4082.4,0.002]
[1761063113098,2.44936387,4082.7,4082.4,0.002]
[1761063113298,2.4494656,4082.6,4082.4,0.002]
[1761063113500,2.44947948,4082.5,4082.4,0.002]
[1761063113910,2.44943118,4082.6,4082.4,0.002]
[1761063114208,0.70999418,4082.6,4082.4,0.002]
[1761063114608,3.15942035,4082.6,4082.4,0.002]
[1761063115009,2.44920465,4083.0,4082.4,0.002]
[1761063115209,2.66987717,4083.2,4082.4,0.002]
[1761063115434,2.44912923,4083.1,4082.4,0.002]
[1761063115642,0.2208,4083.7,4082.4,0.4383]
[1761063115841,0.56292677,4083.9,4082.4,0.4383]
[1761063115842,0.2208,4083.9,4082.4,0.75120128]
[1761063116140,2.44895239,4083.4,4082.7,2.4493495]
[1761063116444,2.44895481,4083.4,4082.8,2.688]
[1761063116822,2.44889507,4083.5,4082.8,5.13728817]
[1761063117025,0.68780761,4083.5,4082.8,2.688]
[1761063117326,2.44892506,4083.5,4082.8,5.13729753]
[1761063117902,1.728,4083.8,4082.9,2.44922586]
[1761063118239,2.44883217,4083.6,4082.9,2.44922586]
[1761063118637,4.17675459,4083.8,4082.8,2.688]
[1761063118839,0.43975546,4083.7,4083.2,2.44903318]
[1761063119140,2.44868734,4083.9,4083.1,2.44910911]
[1761063119341,2.44871856,4083.8,4083.2,0.2165]
[1761063119546,2.39052455,4083.8,4083.2,2.66555909]
[1761063119837,2.39052455,4083.8,4083.3,2.44896141]
[1761063119838,0.66252455,4083.8,4083.3,2.44896141]
[1761063120004,0.35358968,4084.3,4083.5,2.44883928]
[1761063120204,0.35358968,4084.3,4083.5,5.90783928]
[1761063120448,4.17647936,4084.2,4083.5,5.90783928]
[1761063120652,1.728,4084.2,4083.6,2.44881825]
[1761063120851,1.728,4084.2,4083.5,3.459]
[1761063121007,1.728,4084.2,4083.6,0.02448819]
[1761063121212,0.068,4084.6,4083.6,2.88510691]
[1761063121517,0.068,4084.6,4084.1,2.44850661]
[1761063121718,0.068,4084.6,4084.2,3.48348459]
[1761063121924,0.068,4084.6,4084.3,2.44839997]
[1761063122307,0.068,4084.6,4084.2,3.459]
[1761063122507,0.068,4084.6,4084.5,2.44828008]
[1761063122710,0.068,4084.6,4084.5,2.47276288]
[1761063122939,0.068,4084.6,4084.5,3.47530809]
[1761063123320,0.068,4084.6,4084.5,3.59770809]
[1761063123551,0.001,4085.2,4085.1,2.44792049]
[1761063123854,0.001,4085.2,4085.1,7.87489969]
[1761063124058,0.001,4085.2,4085.1,9.61341056]
[1761063125671,0.001,4085.2,4085.1,7.16549007]
[1761063125841,0.001,4085.2,4085.1,0.1216]
[1761063125842,2.44886056,4085.2,4085.1,0.1216]
[1761063126040,2.68276056,4085.2,4085.1,0.1216]
[1761063126265,2.44810027,4084.8,4084.7,0.298]
[1761063126628,2.59990027,4084.8,4084.7,0.298]
[1761063126832,2.44834002,4084.4,4084.3,0.1224]
[1761063127628,2.44881253,4083.7,4083.3,0.4363]
[1761063127832,2.0022,4084.7,4084.0,0.1224]
[1761063127833,2.44822014,4084.6,4084.0,0.1224]
[1761063128060,2.44851986,4084.1,4083.6,0.1224]
[1761063128260,0.52360787,4084.5,4083.4,2.676]
[1761063128489,2.44876248,4083.7,4083.4,2.676]
[1761063128670,0.52360787,4084.5,4083.4,2.676]
[1761063128671,2.44887963,4083.5,4083.4,2.676]
[1761063129038,2.44883162,4083.6,4083.4,2.7984]
[1761063129752,2.44883162,4083.6,4083.4,2.8004]
[1761063130071,2.44877528,4083.7,4083.4,2.8004]
[1761063130266,2.600151,4084.4,4083.8,0.1224]
[1761063130267,0.1518,4084.4,4083.8,0.1224]
[1761063130471,2.44864316,4083.9,4083.8,0.1224]
[1761063131036,0.1518,4084.4,4083.8,0.1224]
[1761063131037,2.44858308,4084.0,4083.8,0.1224]
[1761063131443,0.2208,4084.9,4083.8,0.1224]
[1761063131744,2.44840604,4084.3,4083.8,0.1224]
[1761063131967,2.44834002,4084.4,4084.3,0.1224]
[1761063133262,2.60014002,4084.4,4084.3,0.1224]
[1761063136178,3.27777604,4084.4,4084.3,0.1224]
[1761063136478,2.44845991,4084.2,4084.1,3.454]
[1761063137647,2.44857982,4084.0,4083.9,0.1224]
[1761063137976,2.44857982,4084.0,4083.6,3.452]
[1761063137977,2.4487597,4083.7,4083.6,3.452]
[1761063138176,1.728,4084.8,4083.6,5.9007779]
[1761063138356,1.728,4084.8,4083.6,3.452]
[1761063138357,2.44822014,4084.6,4083.6,3.452]
[1761063138552,2.6657597,4083.7,4083.6,3.452]
[1761063139785,2.44844689,4084.3,4083.6,3.452]
[1761063139786,2.44870678,4083.8,4083.6,3.452]
[1761063140173,2.44865851,4083.9,4083.6,3.452]
[1761063140614,2.44870541,4083.8,4083.6,3.452]
[1761063140912,2.4487597,4083.7,4083.6,3.452]
[1761063141217,2.44873231,4083.8,4083.6,3.452]
[1761063141373,2.44864805,4083.9,4083.6,3.452]
[1761063141703,2.44859247,4084.0,4083.6,3.452]
[1761063142075,2.44872289,4083.8,4083.6,3.452]
[1761063142300,2.66565964,4083.9,4083.6,3.452]
[1761063142471,3.95788,4084.6,4083.6,5.90078293]
[1761063142472,0.1556,4084.6,4083.6,5.90078293]
[1761063142678,0.1556,4084.6,4083.6,3.452]
[1761063142679,0.86377023,4084.6,4083.6,3.452]
[1761063142989,2.44828008,4084.5,4083.6,3.452]
[1761063143191,2.60383028,4084.6,4083.9,2.44862021]
[1761063143379,2.44823028,4084.6,4083.9,2.44862021]
[1761063144065,0.2208,4084.9,4083.6,3.8891]
[1761063144271,2.44833731,4084.5,4083.7,2.44870675]
[1761063144570,2.44822669,4084.6,4083.9,2.44859062]
[1761063144878,1.728,4085.0,4083.6,3.8891]
[1761063144879,0.3752,4085.7,4083.7,0.4658]
[1761063145085,0.3752,4085.7,4083.8,0.02448699]
[1761063145285,2.82277835,4085.7,4084.7,2.4481029]
[1761063145479,2.44863089,4085.6,4084.9,2.4480259]
[1761063145684,2.44863343,4085.6,4085.0,3.448]
[1761063145879,0.001,4085.6,4085.0,3.448]
[1761063146583,0.001,4085.6,4085.1,0.0244792]
[1761063146784,0.001,4085.6,4085.1,0.4902792]
[1761063146982,0.001,4085.6,4085.1,2.93819969]
[1761063147283,0.001,4085.6,4085.1,3.81918184]
[1761063148003,0.001,4085.6,4085.0,3.448]